Cogmind - Beta 14 @@@ ROGUE MODE // 2025.03.13 @ 21:14:58 Player: Shimmyarah Result: Self-destructed Performance ------------- Evolutions (2) 1000 Regions Visited (4) 800 Robots Destroyed (17) 85 Value Destroyed (350) 350 Prototype IDs (14) 280 Alien Tech Used (0) 0 Bonus (0) 0 TOTAL SCORE: 2515 Bonus ------- None Cogmind --------- Core Integrity 550/550 Matter 215/300 Energy 39/250 System Corruption 0% Temperature Cool (16) Movement Hovering (186) Ox2 Location -8/Materials Parts ------- > --- POWER (1+1) ------ Ion Engine > --- PROPULSION (4) --- Improved Aluminum Leg Hover Unit Hover Unit > --- UTILITY (3) ------ Small Storage Unit Seismic Detector Improved Light Armor Plating > --- WEAPON (3) ------- Powered Cannon Battle Rifle > --- INVENTORY (8) ---- Small Matter Pod (48) Improved Terrain Scanner ECM Suite Makeshift System Shield Battle Rifle Light Cannon Mining Laser Peak State ------------ > --- POWER ------------ Ion Engine > --- PROPULSION ------- Improved Aluminum Leg Hover Unit Hover Unit > --- UTILITY ---------- Small Storage Unit Seismic Detector Improved Light Armor Plating > --- WEAPON ----------- Powered Cannon Battle Rifle > --- INVENTORY -------- Small Matter Pod Improved Terrain Scanner ECM Suite Makeshift System Shield Battle Rifle Light Cannon Mining Laser [Rating: 27] Favorites ----------- Power Ion Engine Engine Ion Engine Propulsion Hover Unit Leg Aluminum Leg Hover Unit Hover Unit Utility Small Storage Unit Device Seismic Detector Storage Small Storage Unit Protection Improved Light Armor Plating Weapon Assault Rifle Energy Cannon Powered Cannon Ballistic Gun Assault Rifle Ballistic Cannon Light Cannon Special Weapon Mining Laser Build | -11 -10 -10 -10 -8 ------- Run | Yrd Mat Min Sub Mat Slots Evolved 4 | . . . . 4 Power . | . . . . . Propulsion 2 | . . . . 2 Utility 1 | . . . . 1 Weapon 1 | . . . . 1 Parts Attached 20 | 1 6 8 2 3 Power 1 | . . 1 . . Engine 1 | . . 1 . . Core . | . . . . . Reactor . | . . . . . Propulsion 5 | . 2 2 . 1 Treads . | . . . . . Leg 1 | . . . . 1 Wheel . | . . . . . Hover 4 | . 2 2 . . Flight . | . . . . . Utility 7 | 1 2 2 1 1 Device 5 | 1 2 1 1 . Storage 1 | . . 1 . . Processor . | . . . . . Hackware . | . . . . . Protection 1 | . . . . 1 Artifact . | . . . . . Weapon 7 | . 2 3 1 1 Energy Gun . | . . . . . Energy Cannon 1 | . . . 1 . Ballistic Gun 3 | . 1 1 . 1 Ballistic Cannon 2 | . 1 1 . . Launcher . | . . . . . Special Weapon 1 | . . 1 . . Impact Weapon . | . . . . . Slashing Weapon . | . . . . . Piercing Weapon . | . . . . . Special Melee Weapon . | . . . . . Unidentified Prototypes 1 | . . . . 1 Parts Lost 4 | . . 3 . 1 Power . | . . . . . Propulsion 2 | . . 2 . . Utility . | . . . . . Weapon 2 | . . 1 . 1 Highest Loss Streak 2 | . . 2 . 1 To Critical Strikes . | . . . . . Average Slot Usage (%) 87 | . 100 90 76 67 Engine 12 | . 14 14 12 8 Leg 9 | . 24 . . 6 Hover 16 | . 4 26 25 16 Device 9 | . 14 1 9 8 Storage 14 | . 14 22 12 8 Energy Cannon 3 | . . . 9 8 Ballistic Gun 12 | . 16 22 2 3 Ballistic Cannon 4 | . 11 . . . Peak Build Rating 27 | 9 9 8 20 27 Average Rating 12 | 6 8 6 17 25 On Entrance 10 | 6 9 9 6 20 Naked Turns . | . . . . . Heaviest Build 25 | 13 16 15 20 25 Greatest Support 20 | 20 20 12 12 13 Greatest Overweight (x) 2 | . 1 2 1 2 Average Overweight (x) . | . . . 1 1 Largest Inventory Capacity 8 | 8 8 8 8 8 Average Capacity 8 | 8 8 8 8 8 Most Carried 8 | 8 8 8 8 8 Average Carried 7 | 6 7 7 7 7 Final Capacity 8 | 8 8 8 8 8 Final Carried 8 | 8 8 6 8 7 Class Distribution -------------------- 94% | Mutant 5% | Tank Dominant Class ---------------- Mutant | -10/Materials Mutant | -10/Mines Mutant | -10/Subcaves Mutant | -8/Materials Resources | -11 -10 -10 -10 -8 ----------- Run | Yrd Mat Min Sub Mat Matter Collected 661 | 244 87 247 83 . Remotely . | . . . . . Salvage Created 452 | 140 129 90 . 93 Parts 28 | 11 10 4 . 3 Haulers Intercepted . | . . . . . Recyclers Shooed 1 | . . 1 . . Parts Field Recycled . | . . . . . Retrieved Matter . | . . . . . Parts Self-Destructed . | . . . . . Prevented . | . . . . . Kills | -11 -10 -10 -10 -8 ------- Run | Yrd Mat Min Sub Mat Combat Hostiles Destroyed 9 | . 3 2 . 4 Guns 4 | . . 2 . 2 Cannons 5 | . 3 . . 2 Classes Destroyed 7 | 2 3 . . 2 Tunneler 4 | 4 . . . . Recycler 1 | 1 . . . . Operator 2 | . 2 . . . Watcher 1 | . 1 . . . Swarmer 3 | . . . . 3 Grunt 5 | . 3 2 . . Hunter 1 | . . . . 1 Best Kill Streak 3 | 3 2 1 . 3 Combat Bots Only 3 | . 2 1 . 3 Max Kills in Single Turn 1 | 1 1 1 . 1 Gunslinging . | . . . . . Exploded . | . . . . . Melee . | . . . . . Uniques/NPCs Destroyed . | . . . . . Combat | -11 -10 -10 -10 -8 -------- Run | Yrd Mat Min Sub Mat Hostile Shots Fired 90 | . 17 53 6 14 Missed 30 | . 6 16 4 4 Damage Taken 742 | . 113 489 38 102 Core 171 | . 22 149 . . Absorbed by Shields . | . . . . . Core Remaining (%) 65 | 100 . . 31 . Volleys Fired 75 | 17 19 23 6 10 Largest 2 | 2 2 2 1 2 Hottest 100 | 40 55 100 100 65 Shots Fired 141 | 34 38 43 6 20 Gun 103 | 34 19 40 . 10 Cannon 31 | . 19 . 2 10 Launcher . | . . . . . Special 7 | . . 3 4 . Kinetic 122 | 34 38 40 . 10 Thermal 19 | . . 3 6 10 Explosive . | . . . . . Electromagnetic . | . . . . . Robot Hit Streak 11 | 11 4 5 . 6 Robot Miss Streak 5 | 3 3 3 . 5 Penetration Max . | . . . . . Secondary Targets . | . . . . . Shots Hit Robots 78 | 21 22 26 . 9 Core Hits 29 | 11 8 6 . 4 Critical Kills . | . . . . . Critical Parts Destroyed 1 | . 1 . . . Critical Strikes 3 | . 3 . . . Destroy 1 | . 1 . . . Blast 2 | . 2 . . . Melee Attacks . | . . . . . Impact . | . . . . . Slashing . | . . . . . Piercing . | . . . . . Sneak Attacks . | . . . . . Combat Hostiles . | . . . . . Follow-up Attacks . | . . . . . Damage Inflicted 1075 | 171 339 328 . 237 Guns 696 | 171 127 321 . 77 Cannons 372 | . 212 . . 160 Explosions . | . . . . . Melee . | . . . . . Ramming 7 | . . 7 . . Kinetic 908 | 171 339 321 . 77 Thermal 160 | . . . . 160 Explosive . | . . . . . Electromagnetic . | . . . . . Impact . | . . . . . Slashing . | . . . . . Piercing . | . . . . . Highest Corruption . | . . . . . Average Corruption . | . . . . . Corruption Purged . | . . . . . Corruption Blocked . | . . . . . Overload Shots . | . . . . . Overflow Damage 42 | . 8 . . 34 Projectiles 42 | . 8 . . 34 Explosions . | . . . . . Melee . | . . . . . Knockbacks . | . . . . . Impact . | . . . . . Kinetic . | . . . . . Secondary . | . . . . . Self-Inflicted Damage 3 | . . 3 . . Shots . | . . . . . Rammed 2 | . . 2 . . Targets Rammed 2 | . . 2 . . Kicked . | . . . . . Crushed . | . . . . . Highest Temperature 56 | . 14 56 2 40 Average Temperature 12 | . 4 14 2 18 Received Heat Transfer 393 | . 54 327 12 . Siege Activations . | . . . . . Robots Corrupted . | . . . . . Combat Hostiles . | . . . . . Parts Fried . | . . . . . Impact Corruptions . | . . . . . Robots Melted . | . . . . . Combat Hostiles . | . . . . . Parts Melted . | . . . . . Heat Transferred . | . . . . . Parts Sabotaged . | . . . . . Parts Stolen . | . . . . . Parts Stripped . | . . . . . Power Chain Reactions . | . . . . . Alert | -11 -10 -10 -10 -8 ------- Run | Yrd Mat Min Sub Mat Peak Influence 155 | 25 77 155 . 103 Initial 30 | . 16 30 . . Average 38 | 14 26 72 . 30 Maximum Alert Level . | . . . . . Low Security (%) 100 | 100 100 100 . 100 Level 1 . | . . . . . Level 2 . | . . . . . Level 3 . | . . . . . Level 4 . | . . . . . Level 5 . | . . . . . High Security . | . . . . . Max Security . | . . . . . Squads Dispatched 4 | . 3 . . 1 Investigation 1 | . 1 . . . Extermination . | . . . . . Reinforcement 2 | . 2 . . . Assault . | . . . . . Garrison 1 | . . . . 1 Intercept . | . . . . . Searches Triggered . | . . . . . Construction Impeded . | . . . . . Haulers Reinforced . | . . . . . Active Scanning Responses . | . . . . . Cargo Convoy Interrupts . | . . . . . Stealth | -11 -10 -10 -10 -8 --------- Run | Yrd Mat Min Sub Mat Distress Signals 3 | . 2 1 . . Communications Jammed . | . . . . . Distress Signals . | . . . . . Times Spotted 30 | . 11 11 2 6 Peak Tracking Total 4 | . 3 4 2 3 Tactical Retreats 3 | . . 3 . . Traps | -11 -10 -10 -10 -8 ------- Run | Yrd Mat Min Sub Mat Traps Triggered 1 | . 1 . . . Indirectly . | . . . . . Trap Hack Attempts . | . . . . . Triggered . | . . . . . Disarmed . | . . . . . Reprogrammed . | . . . . . Reused . | . . . . . Traps Extracted . | . . . . . Installed . | . . . . . Triggered . | . . . . . Machines | -11 -10 -10 -10 -8 ---------- Run | Yrd Mat Min Sub Mat Machines Disabled 2 | . . . 2 . Max in Single Turn 1 | . . . 1 . Machines Repaired . | . . . . . Machines Dismantled . | . . . . . Machines Sabotaged . | . . . . . Overloaded Fab Kills . | . . . . . Hacking | -11 -10 -10 -10 -8 --------- Run | Yrd Mat Min Sub Mat Machines Accessed 11 | . 6 . 2 3 Terminals 9 | . 6 . . 3 Fabricators . | . . . . . Repair Stations . | . . . . . Recycling Units . | . . . . . Scanalyzers . | . . . . . Garrison Access . | . . . . . Total Hacks 32 | . 15 . 6 11 Successful 20 | . 8 . 6 6 Failed 12 | . 7 . . 5 Catastrophic 2 | . 2 . . . Database Lockouts . | . . . . . Manual 3 | . 3 . . . Terminals 26 | . 15 . . 11 Fabricators . | . . . . . Repair Stations . | . . . . . Recycling Units . | . . . . . Scanalyzers . | . . . . . Garrison Access . | . . . . . Terminal Hacks 20 | . 8 . 6 6 Record 5 | . . . 5 . Prototype ID Bank 1 | . . . . 1 Terminal Index 1 | . 1 . . . Alert Level 1 | . 1 . . . Unreport Threat 2 | . 1 . . 1 Locate Traps 1 | . 1 . . . Dispatch Records 1 | . 1 . . . Patrol Status 2 | . 1 . . 1 Hauler Manifests 2 | . . . . 2 Zone Layout 3 | . 2 . . 1 Derelict Proto ID Bank 1 | . . . 1 . Fabricator Hacks . | . . . . . Repair Station Hacks . | . . . . . Recycling Unit Hacks . | . . . . . Scanalyzer . | . . . . . Garrison Access Hacks . | . . . . . Unauthorized Hacks . | . . . . . Terminals . | . . . . . Fabricators . | . . . . . Repair Stations . | . . . . . Recycling Units . | . . . . . Scanalyzers . | . . . . . Garrison Access . | . . . . . Data Cores Recovered . | . . . . . Used . | . . . . . Hacking Detections 7 | . 5 . . 2 Full Trace Events . | . . . . . Feedback Events . | . . . . . Feedback Blocked . | . . . . . Robot Schematics Acquired . | . . . . . Robots Built . | . . . . . Authchips . | . . . . . Time . | . . . . . Total Robot Build Rating . | . . . . . Part Schematics Acquired . | . . . . . Parts Built . | . . . . . Authchips . | . . . . . Time . | . . . . . Total Part Build Rating . | . . . . . Parts Repaired . | . . . . . Time . | . . . . . Parts Recycled . | . . . . . Recycled Matter . | . . . . . Retrieved Matter . | . . . . . Retrieved Components . | . . . . . Parts Scanalyzed . | . . . . . Part Schematics Acquired . | . . . . . Parts Damaged . | . . . . . Bothacking | -11 -10 -10 -10 -8 ------------ Run | Yrd Mat Min Sub Mat Used RIF Installer . | . . . . . Robots Hacked . | . . . . . Non-combat . | . . . . . Combat . | . . . . . Robot Hacks Applied . | . . . . . Relay Couplers Released . | . . . . . Fabnet Peak Effective % . | . . . . . Robots Rewired . | . . . . . Allies Hacked . | . . . . . Hacks Repelled . | . . . . . Allies | -11 -10 -10 -10 -8 -------- Run | Yrd Mat Min Sub Mat Total Allies . | . . . . . Largest Group . | . . . . . Highest-Rated Group . | . . . . . Highest-Rated Ally . | . . . . . Total Orders . | . . . . . Ally Attacks . | . . . . . Total Damage . | . . . . . Kills . | . . . . . Allies Corrupted . | . . . . . Allies Melted . | . . . . . Intel | -11 -10 -10 -10 -8 ------- Run | Yrd Mat Min Sub Mat Robot Analysis Total . | . . . . . Derelict Logs Recovered . | . . . . . Drone Launches . | . . . . . Drone Recoveries . | . . . . . Exploration | -11 -10 -10 -10 -8 ------------- Run | Yrd Mat Min Sub Mat Turns Passed 1604 | 118 560 315 431 180 Spaces Moved 1131 | 57 404 223 345 102 Core . | . . . . . Treads . | . . . . . Legs 404 | 57 342 . . 5 Wheels . | . . . . . Hover 727 | . 62 223 345 97 Flight . | . . . . . Fastest Speed 56 | 120 116 56 116 116 Average Speed 115 | 120 119 92 116 141 Slowest Speed 190 | 120 120 180 116 190 Overloaded Moves . | . . . . . Propulsion Burnouts . | . . . . . Robots Hopped . | . . . . . Cave-ins Triggered . | . . . . . Exploration Rate (%) 25 | 4 49 43 24 9 Regions Visited 4 Branch Regions 2 Pre-discovered Areas . | . . . . . Known Exits Taken 1 | . . . 1 . Unknown Exits Taken 3 | 1 1 1 . . Scrap Searched 3 | . . 1 2 . Spaces Dug . | . . . . . Terrain Destroyed 7 | . . . . 7 Melee . | . . . . . Projectile 7 | . . . . 7 AOE . | . . . . . Terrain Rammed . | . . . . . Walls Destroyed . | . . . . . Machines Disabled . | . . . . . Actions | -11 -10 -10 -10 -8 --------- Run | Yrd Mat Min Sub Mat Total 1291 | 79 448 282 364 118 Wait 33 | 3 3 25 . 2 Move 1127 | 56 403 222 344 102 Hop . | . . . . . Pick Up 17 | 2 8 . 7 . Fast Attach 4 | 1 . . . 3 Attach 7 | . . 4 2 1 Detach 2 | . . 2 . . Swap 10 | . 6 4 . . Drop 14 | . 9 . 5 . Fire 75 | 17 19 23 6 10 Melee . | . . . . . Ram 2 | . . 2 . . Kick . | . . . . . Crush . | . . . . . Escape Stasis . | . . . . . Rewire . | . . . . . Trap . | . . . . . Miscellaneous . | . . . . . Route ------- -11/Scrapyard -10/Materials (discovered 3 exits: [*Mat] / [*Min x2]) -10/Mines -10/Subcaves (discovered 3 exits: *Mat x2 / Rec) -8/Materials History --------- Turn | Location | Event 17 | -11/Scrapyard | Discovered new exit (range 3) 119 | -11/Scrapyard | Entered Materials 136 | -10/Materials | Discovered new exit (range 11) 313 | -10/Materials | Build established: Mutant 371 | -10/Materials | Discovered new exit (range 3) 456 | -10/Materials | Discovered new exit (range 15) 679 | -10/Materials | Entered Mines 853 | -10/Mines | Assembled infested the area 896 | -10/Mines | Core integrity fell below 50% 989 | -10/Mines | Discovered new exit (range 3) 994 | -10/Mines | Entered Subcaves 1052 | -10/Subcaves | Visited 4L-MR0's lab 1075 | -10/Subcaves | Found Powered Cannon 1078 | -10/Subcaves | Attached Powered Cannon, gained temporary slot: Power 1330 | -10/Subcaves | Learned Factory garrison access intel 1330 | -10/Subcaves | Identified exit to Materials 1330 | -10/Subcaves | Identified exit to Recycling 1425 | -10/Subcaves | Entered Materials 1425 | -8/Materials | Evolved 4 slots: Propulsion x2, Utility x1, Weapon x1 1588 | -8/Materials | Garrison activated, responded to threat 1605 | -8/Materials | Self-destructed Last Messages --------------- 01580_ K-01 Serf collects debris. 01581_ Connecting with Terminal... >>Alert(Purge) Purged threat record, alert level lowered. 01584_ K-01 Serf cleans the Terminal. 01587_ O-16 Technician: "IFF HANDSHAKE FAILED. SECURING TERMINAL." 01588_ K-01 Serf collects debris. 01588_ O-16 Technician calls for garrison support. 01588_ ALERT: Activating Garrison Access M001. 01591_ K-01 Serf collects debris. 01594_ Penetrated by Slug. 01594_ Terminal disabled. 01594_ K-01 Serf collects debris. 01594_ U-05 Engineer builds a Wall. 01600_ Slug penetrates Wall. 01601_ U-05 Engineer builds a Wall. 01602_ H-55 Commando destroyed. 01604_ K-01 Serf collects debris. Map ----- +----------------------------------------------------+ | ???????????????????????????????????# #?????????? | | ???????????????????????????????????# #?????????? | | ???????????????????????????????????# ########### | | ???????????????????????????????????# ## T # | | ??????????????????????????????????## ## """ # | | ??????????????????????????????????# # """ # | | ??????????????????????????????????# # """ # | | ??????????????????????????????????# + # | | ??????????????????????????????????# # """ # | | ??????????????????????????????????# # """ # | | ??????????????????????????????????## ## """ # | | ??????????????????????# #?????# ## # | | ??????????????????????? #?????# ########### | | ??????????????????????###+########## #?????????? | | ??????????????????????# #?# # #?????????? | | ?????????????????????? #?# ""# #?????????? | | ?????????????????????? T #?# T"# #?????????? | | ?????????????????????? #?# ""# #?????????? | | ??????????????????????# ! #?# # #?????????? | | ??????????????????????###k###?# # #?????????? | | ????????????????????????# #???# + #?????????? | | ????????????????????????#Y##??# # #?????????? | | ????????????????????????;[;#??# # #########?? | | ??????????????????????### ###?###### ## #?? | | ??????????????????????# ####### ] # #?? | | ??????????????????????# @ r % # #?? | | ??????????????????????# u T %/ #?? | | ??????????????????????# # #?? | | ??????????????????????# ###;### # #?? | | ????????????????????#####+###########+##########?? | | ????????????????????# #?# #??????? | | ????????????????????# #?# #??????? | | ????????????????????# #?# #??????? | | ????????????????????# #?# #??????? | | ????????????????????# """ """ #?# #??????? | | ????????????????????# """ """ #?# #??????? | | ????????????????????# """ """ #?# #??????? | | ????????????????????# #?# #??????? | | ????????????????????#######################??????? | | ??????????????????????######## """ #?????????? | | ??????????????????????# # "T" ########### | | ??????????????????????# # # # | | ?????????????????????????????????????????????????? | | ?????????????????????????????????????????????????? | | ?????????????????????????????????????????????????? | | ?????????????????????????????????????????????????? | | ?????????????????????????????????????????????????? | | ?????????????????????????????????????????????????? | | ?????????????????????????????????????????????????? | | ?????????????????????????????????????????????????? | +----------------------------------------------------+ Best States ------------- Heat Dissipation 31 Energy Generation 10 Energy Capacity 250 Matter Stores 300 Matter Capacity 350 Sight Range 16 Terrain Scan Range 16 Terrain Scan Density 10 Armor Coverage 150 Evasion (%) 55 Item Schematics ----------------- None Robot Schematics ------------------ None Fabricated ------------ Nothing Alien Tech Used ----------------- None Achievements -------------- None Challenges ------------ None Game ------ Seed MetafieldRagnarokWell Manual? 0 Play Time 00:23:20 Cumulative 123.5 hours Start 2025.03.13 @ 20:53:47 End 2025.03.13 @ 21:14:58 Sessions 1 Manual Loads 0 Difficulty Rogue Special Mode None Game No. 163 Rogue 163 Adventurer 0 Explorer 0 Win Type - Total 1 Types 1/0/0/0/0/0/0/0/0 Lore% 66 Gallery% 51 Achievement% 38 Wizard Run 0 Options --------- Layout 1 ASCII 0 Keyboard 0 Movement Mouse Keybinds 0 Fullscreen 1 Font 24/Smallcaps Map View 50x40 Zoom Use 0% Tactical HUD 1 Map Filters NONE Filters NONE Steam 1 RUN: cc352924-9bc7-4988-9027-2dd7f252b1f3